fUSD/lending_fUSD_20240515
["ID","MTS","AMOUNT","RATE_DAILY","PERIOD"]
[327085662,1715801445075,-500.0,0.00011999,2]
[327085663,1715801445084,-500.0,0.00011999,2]
[327085664,1715801445094,-500.0,0.00011999,2]
[327085665,1715801445104,-500.0,0.00011999,2]
[327085666,1715801445115,-369.95,0.00011999,2]
[327085667,1715801445125,-500.0,0.00011999,2]
[327085668,1715801445135,-500.0,0.00011999,2]
[327085669,1715801445144,-621.67,0.00011999,2]
[327085670,1715801445154,-500.0,0.00011999,2]
[327085671,1715801445165,-500.0,0.00011999,2]
[327085672,1715801445175,-500.0,0.00011999,2]
[327085673,1715801445185,-500.0,0.00011999,2]
[327085674,1715801445195,-500.0,0.00011999,2]
[327085675,1715801445205,-500.0,0.00011999,2]
[327085676,1715801445216,-500.0,0.00011999,2]
[327085677,1715801445226,-500.0,0.00011999,2]
[327085678,1715801445236,-500.0,0.00011999,2]
[327085679,1715801445246,-500.0,0.00011999,2]
[327085680,1715801445256,-500.0,0.00011999,2]
[327085681,1715801445402,-500.0,0.00011999,2]
[327085682,1715801445418,-500.0,0.00011999,2]
[327085683,1715801445429,-500.0,0.00011999,2]
[327085684,1715801445440,-500.0,0.00011999,2]
[327085685,1715801445451,-500.0,0.00011999,2]
[327085686,1715801445462,-253.89,0.00011999,2]
[327085687,1715801445473,-500.0,0.00011999,2]
[327085688,1715801445488,-500.0,0.00011999,2]
[327085689,1715801445498,-500.0,0.00011999,2]
[327085690,1715801445508,-500.0,0.00011999,2]
[327085691,1715801445518,-500.0,0.00011999,2]
[327085692,1715801445530,-140.51587321,0.00011999,2]
[327085693,1715801445546,-359.48412679,0.00011999,2]
[327085694,1715801445559,-500.0,0.00011999,2]
[327085695,1715801445572,-237.7478977,0.00011999,2]
[327085713,1715801445998,-262.2521023,0.00011999,2]
[327085714,1715801446009,-500.0,0.00011999,2]
[327085715,1715801446018,-259.46434056,0.00011999,2]
[327085716,1715801446031,-240.53565944,0.00011999,2]
[327085717,1715801446042,-500.0,0.00011999,2]
[327085718,1715801446057,-500.0,0.00011999,2]
[327085719,1715801446067,-500.0,0.00011999,2]
[327085720,1715801446077,-500.0,0.00011999,2]
[327085721,1715801446087,-500.0,0.00011999,2]
[327085722,1715801446096,-500.0,0.00011999,2]
[327085723,1715801446106,-500.0,0.00011999,2]
[327085724,1715801446115,-500.0,0.00011999,2]
[327085725,1715801446124,-500.0,0.00011999,2]
[327085726,1715801446134,-500.0,0.00011999,2]
[327085727,1715801446143,-473.18229863,0.00011999,2]
[327085728,1715801446153,-500.0,0.00011999,2]
[327085729,1715801446163,-386.99,0.00011999,2]
[327085730,1715801446174,-1498.35,0.00011999,2]
[327085731,1715801446183,-1498.35,0.00011999,2]
[327085732,1715801446194,-289.88,0.00011999,2]
[327085733,1715801446204,-1498.35,0.00011999,2]
[327085734,1715801446213,-1498.35,0.00011999,2]
[327085735,1715801446223,-1498.35,0.00011999,2]
[327085736,1715801446233,-1498.35,0.00011999,2]
[327085737,1715801446242,-1498.35,0.00011999,2]
[327085738,1715801446252,-500.0,0.00011999,2]
[327085739,1715801446262,-1498.35,0.00011999,2]
[327085740,1715801446274,-268.67,0.00011999,2]
[327085741,1715801446284,-500.0,0.00011999,2]
[327085742,1715801446294,-500.0,0.00011999,2]
[327085743,1715801446306,-500.0,0.00011999,2]
[327085744,1715801446316,-500.0,0.00011999,2]
[327085745,1715801446326,-500.0,0.00011999,2]
[327085746,1715801446336,-500.0,0.00011999,2]
[327085747,1715801446345,-500.0,0.00011999,2]
[327085748,1715801446355,-500.0,0.00011999,2]
[327085749,1715801446365,-429.81,0.00011999,2]
[327085750,1715801446375,-500.0,0.00011999,2]
[327085751,1715801446385,-516.3,0.00011999,2]
[327085752,1715801446395,-614.79,0.00011999,2]
[327085753,1715801446404,-500.0,0.00011999,2]
[327085754,1715801446414,-500.0,0.00011999,2]
[327085755,1715801446424,-500.0,0.00011999,2]
[327085756,1715801446434,-500.0,0.00011999,2]
[327085757,1715801446443,-500.0,0.00011999,2]
[327085758,1715801446453,-475.19,0.00011999,2]
[327085759,1715801446462,-500.0,0.00011999,2]
[327085760,1715801446471,-349.89,0.00011999,2]
[327085761,1715801446481,-223.52,0.00011999,2]
[327085762,1715801446493,-500.0,0.00011999,2]
[327085763,1715801446503,-500.0,0.00011999,2]
[327085764,1715801446512,-500.0,0.00011999,2]
[327085765,1715801446521,-500.0,0.00011999,2]
[327085766,1715801446532,-205.51,0.00011999,2]
[327085767,1715801446542,-569.25,0.00011999,2]
[327085768,1715801446557,-569.25,0.00011999,2]
[327085769,1715801446568,-569.25,0.00011999,2]
[327085770,1715801446577,-569.25,0.00011999,2]
[327085771,1715801446588,-569.25,0.00011999,2]
[327085772,1715801446601,-569.25,0.00011999,2]
[327085773,1715801446611,-569.25,0.00011999,2]
[327085774,1715801446621,-569.25,0.00011999,2]
[327085775,1715801446630,-507.88232033,0.00011999,2]
[327085776,1715801446639,-3679.05383347,0.00012,2]
[327085777,1715801446686,-620.36949781,0.0001178,2]
[327085778,1715801446698,-28.15050219,0.0001178,2]
[327085779,1715801446708,-500.0,0.00011998,2]
[327085780,1715801446718,-685.24160663,0.00012,2]
[327085781,1715801446730,-365.0,0.00012,2]
[327085782,1715801446742,-831.02421482,0.00012,2]
[327085783,1715801446857,51769.93750021,8.219e-05,2]
[327085784,1715801446916,-883.1393124,0.00011998,2]
[327085785,1715801446925,-500.0,0.00011998,2]
[327085786,1715801446935,-390.4,0.00011999,2]
[327085787,1715801446946,-64191.10500288,0.00012,2]
[327085788,1715801447003,-857.15678782,0.00012,2]
[327085789,1715801447015,-2411.36000001,0.00012,2]
[327085790,1715801447070,-500.0,0.00011998,2]
[327085791,1715801447081,-16790.57906725,0.00012,2]
[327085792,1715801447092,-906.92324633,0.00012,2]
[327085793,1715801447103,-19760.9774688,0.00012,2]
[327085794,1715801449224,-500.0,0.0001178,2]
[327085796,1715801449234,-500.0,0.0001178,2]
[327085798,1715801449244,-500.0,0.0001178,2]
[327085800,1715801449253,-500.0,0.0001178,2]
[327085802,1715801449263,-323.9177936,0.00011997,2]
[327085804,1715801449273,-267.06936373,0.00011997,2]
[327085806,1715801449282,-552.07849885,0.00011997,2]
[327085809,1715801449294,-1647.025,0.00011997,2]
[327085811,1715801449306,-1.17674321,0.00011997,2]
[327085813,1715801449316,-500.0,0.00011998,2]
[327085815,1715801449325,-500.0,0.00011998,2]
[327085820,1715801449368,-500.0,0.00011998,2]
[327085822,1715801449377,-500.0,0.00011999,2]
[327085824,1715801449387,-500.62,0.00011999,2]
[327085826,1715801449396,-500.0,0.00011999,2]
[327085828,1715801449406,-500.0,0.00011999,2]
[327085830,1715801449415,-624.96,0.00011999,2]
[327085832,1715801449425,-500.0,0.00011999,2]
[327085834,1715801449435,-500.0,0.00011999,2]
[327085836,1715801449443,-500.0,0.00011999,2]
[327085838,1715801449453,-500.0,0.00011999,2]
[327085840,1715801449462,-500.0,0.00011999,2]
[327085842,1715801449472,-500.0,0.00011999,2]
[327085844,1715801449483,-451.55281481,0.00011999,2]
[327085846,1715801449494,-500.0,0.00011999,2]
[327085848,1715801449503,-500.0,0.00011999,2]
[327085850,1715801449512,-500.0,0.00011999,2]
[327085852,1715801449523,-487992.66013959,0.00012,2]
[327085854,1715801449534,-410.03425881,0.00012,2]
[327085856,1715801449544,-408640.16494414,0.00012,2]
[327085858,1715801449557,-1303.88772643,0.00012,2]
[327085860,1715801449569,-662.73322257,0.00012,2]
[327085999,1715802159631,218.73,8.421e-05,2]
[327086015,1715802598537,560.64231603,8.421e-05,2]
[327086016,1715802599902,1377.15936898,8.421e-05,2]
[327086020,1715802601234,28267.43362837,8.421e-05,2]
[327086021,1715802601346,20210.93649759,8.421e-05,2]
[327086022,1715802616538,560.54893755,8.421e-05,2]
[327086023,1715802619342,15637.34023997,8.421e-05,2]
[327086026,1715802631925,-447.78112382,9.895e-05,2]
[327086028,1715802632000,-1773.4315144,9.895e-05,2]
[327086029,1715802632010,-1830.26,9.896e-05,2]
[327086030,1715802632021,-250.0,9.961e-05,2]
[327086031,1715802632030,-179.09,0.00010131,2]
[327086032,1715802632040,-1000.0,0.00010199,2]
[327086033,1715802632048,-900.0,0.000102,3]
[327086034,1715802632057,-3269.53955042,0.00010289,2]
[327086035,1715802632069,-3588.27117866,0.00010289,2]
[327086036,1715802632091,-316.0,0.00010289,2]
[327086037,1715802632138,-4400.0,0.00010289,2]
[327086038,1715802632149,-3445.55880682,0.00010289,2]
[327086039,1715802632160,-5961.9004641,0.00010289,2]
[327086040,1715802632169,-250.0,0.00010298,2]
[327086041,1715802632178,-1900.0,0.000103,3]
[327086042,1715802632187,-150.0,0.00010384,2]
[327086043,1715802632197,-2800.0,0.000104,3]
[327086044,1715802632206,-250.23,0.00010411,2]
[327086045,1715802632215,-3800.0,0.000105,3]
[327086046,1715802632224,-4800.0,0.000106,3]
[327086047,1715802632233,-159.41,0.000107,2]
[327086048,1715802632243,-499.99,0.000107,2]
[327086049,1715802632252,-900.0,0.000107,3]
[327086050,1715802632261,-900.0,0.000108,3]
[327086051,1715802632271,-277.99598476,0.00010828,2]
[327086052,1715802632280,-900.0,0.000109,3]
[327086054,1715802632289,-150.0,0.00010959,2]
[327086055,1715802632298,-414.59,0.00011068,2]
[327086057,1715802632307,-31.94740115,0.00011096,2]
[327086060,1715802632320,-331.85,0.00011096,2]
[327086062,1715802632331,-51.42259885,0.00011096,2]
[327086064,1715802632340,-415.22,0.00011096,2]
[327086066,1715802632349,-245.08622249,0.000113,2]
[327086069,1715802637838,-3730.36434643,9.896e-05,2]
[327086070,1715802637851,-4400.63270203,9.896e-05,2]
[327086071,1715802637866,-3209.61201282,0.000113,2]
[327086072,1715802637879,-1069.92326469,0.000113,2]
[327086073,1715802637889,-1000.0,0.000113,2]
[327086074,1715802637900,-1000.0,0.000113,2]
[327086075,1715802637909,-234.87313531,0.000113,2]
[327086076,1715802637921,-698.49918639,0.000113,2]
[327086077,1715802637933,-66.6276783,0.000113,2]
[327086078,1715802637942,-1000.0,0.000113,2]
[327086079,1715802637952,-1000.0,0.000113,2]
[327086080,1715802637962,-1000.0,0.000113,2]
[327086081,1715802637971,-3112.35629551,0.00011358,2]
[327086082,1715802638027,-93762.35509398,0.00011358,2]
[327086083,1715802638038,-5731.89280292,0.00011358,2]
[327086084,1715802638071,-3385.96953395,0.00011358,2]
[327086085,1715802638083,-945.6172793,0.00011358,2]
[327086086,1715802638095,-679.58836849,0.00011358,2]
[327086098,1715802641017,-879.36098232,0.00011358,2]
[327086099,1715802641030,-3162.61999998,0.00011358,2]
[327086100,1715802641209,-19851.39446086,0.00011358,2]
[327086101,1715802641219,-4901.08292964,0.00011374,2]
[327086102,1715802641229,-190.35446174,0.00011374,2]
[327086103,1715802641239,-337.788539,0.00011374,2]
[327086104,1715802641248,-467082.79120208,0.000114,2]
[327086105,1715802641259,-394.18780526,0.000114,2]
[327086106,1715802641272,-55746.72656679,0.000114,2]
[327086107,1715802641281,-89632.87138682,0.000114,2]
[327086286,1715802643000,-644.45527968,0.00011374,2]
[327086288,1715802643010,-13992.76072032,0.000114,2]
[327086423,1715802644289,-3097.70669716,0.000114,2]
[327086425,1715802644300,-26350.82163563,0.000114,2]
[327086571,1715802645961,-42.29103374,9.111e-05,2]
[327086575,1715802645981,-165.49896626,9.111e-05,2]
[327086577,1715802645991,-622.20292188,0.00011374,2]
[327086578,1715802646001,-207.79,0.00011375,2]
[327086579,1715802646010,-39.90807186,0.00011399,2]
[327086580,1715802646022,-115.09192814,0.00011399,2]
[327086581,1715802646032,-2166.15159271,0.000114,2]
[327086582,1715802646064,-995050.12999195,0.000114,2]
[327086583,1715802646144,-6634.45,0.000114,2]
[327086584,1715802646155,-132561.53240767,0.000114,2]
[327086589,1715802663324,44292.2715113,8.421e-05,2]
[327086590,1715802663350,218662.46314687,8.421e-05,2]
[327086591,1715802699199,211678.6185619,8.421e-05,2]
[327086592,1715802699228,129418.38566607,8.421e-05,2]
[327086593,1715802711658,151.0,0.00020469,120]
[327086595,1715802745506,5911.44115647,8.421e-05,2]
[327086596,1715802803871,20210.93649759,8.421e-05,2]
[327086597,1715802811061,560.64231603,8.421e-05,2]
[327086598,1715802817878,20210.93649759,8.421e-05,2]
[327086599,1715802831058,560.54893755,8.421e-05,2]
[327086600,1715802835874,20210.93649759,8.421e-05,2]
[327086601,1715802849877,20210.93649759,8.421e-05,2]
[327086603,1715802931399,155.79,7.695e-05,2]
[327086608,1715803002933,5433.70283735,7.695e-05,2]
[327086609,1715803002955,14190.13109359,7.695e-05,2]
[327086610,1715803007770,1063.44051398,7.694e-05,2]
[327086611,1715803012594,1380.16157324,7.694e-05,2]
[327086614,1715803132767,187.01,8.219e-05,2]
[327086616,1715803161395,192.79,8.219e-05,2]
[327086624,1715803409029,155.79,7.528e-05,2]
[327086626,1715803652229,150.53,8.219e-05,2]
[327086627,1715803698326,177.65,8.219e-05,2]
[327086657,1715803831976,-155.0,8.702e-05,2]
[327086660,1715803831986,-234.14248517,8.702e-05,2]
[327086661,1715803831996,-3086.39716464,8.703e-05,2]
[327086662,1715803832027,-872.59602349,8.703e-05,2]
[327086663,1715803832040,-316.40335279,8.703e-05,2]
[327086664,1715803832050,-155.0,8.704e-05,2]
[327086665,1715803832060,-240.07020209,8.704e-05,2]
[327086666,1715803832074,-389.84087267,8.704e-05,2]
[327086667,1715803832097,-270.43870298,8.704e-05,2]
[327086668,1715803832111,-371.68318088,8.704e-05,2]
[327086669,1715803832121,-217.27337615,8.705e-05,2]
[327086670,1715803832131,-1213.7455377,8.705e-05,2]
[327086671,1715803832142,-1702.24136716,8.705e-05,2]
[327086672,1715803832155,-1324.62433264,8.705e-05,2]
[327086673,1715803832165,-2066.43292076,8.705e-05,2]
[327086674,1715803832176,-1022.14294787,8.705e-05,2]
[327086675,1715803832186,-326.57681908,8.706e-05,2]
[327086676,1715803832195,-602.46307175,8.706e-05,2]
[327086677,1715803832208,-1618.74956647,8.706e-05,2]
[327086678,1715803832218,-3283.15688615,8.706e-05,2]
[327086679,1715803832232,-817.82411991,8.707e-05,2]
[327086680,1715803832241,-409.53251773,8.707e-05,2]
[327086681,1715803832252,-388.30074389,8.707e-05,2]
[327086682,1715803832264,-267.84536547,8.707e-05,2]
[327086683,1715803832275,-266.19309669,8.707e-05,2]
[327086684,1715803832286,-360.86581876,8.708e-05,2]
[327086686,1715803832295,-1788.72551767,8.708e-05,2]
[327086687,1715803832305,-94.08612161,8.709e-05,2]
[327086688,1715803832318,-2000.0,8.709e-05,2]
[327086689,1715803832347,-5418.924905,8.709e-05,2]
[327086691,1715803832356,-150.0,8.711e-05,2]
[327086692,1715803832365,-150.0,8.711e-05,2]
[327086695,1715803832376,-534.31132764,8.712e-05,2]
[327086696,1715803832386,-590.61169462,8.806e-05,2]
[327086698,1715803832395,-1000.0,8.815e-05,2]
[327086700,1715803832404,-1000.0,8.815e-05,2]
[327086701,1715803832415,-356.13965081,8.816e-05,2]
[327086702,1715803832425,-10646.95493639,8.816e-05,2]
[327086703,1715803832437,-293.80869513,8.816e-05,2]
[327086704,1715803832459,-2428.9003,8.816e-05,2]
[327086705,1715803832471,-2610.34372038,8.816e-05,2]
[327086706,1715803832483,-8436.03722432,8.816e-05,2]
[327086707,1715803832492,-848.00767163,8.819e-05,2]
[327086708,1715803832502,-250.0,9.369e-05,2]
[327086709,1715803832512,-1219.5,9.449e-05,2]
[327086710,1715803832522,-1000.0,9.623e-05,2]
[327086711,1715803832532,-191.95,9.67e-05,2]
[327086712,1715803832542,-789.21148886,0.00010067,2]
[327086713,1715803832551,-328.36,0.00010068,2]
[327086714,1715803832560,-223.0,0.0001008,2]
[327086715,1715803832569,-369.0,0.0001008,2]
[327086716,1715803832578,-3400.0,0.000102,3]
[327086717,1715803832587,-223.0,0.0001023,2]
[327086718,1715803832597,-369.0,0.0001023,2]
[327086719,1715803832606,-6800.0,0.000103,3]
[327086720,1715803832615,-223.0,0.0001039,2]
[327086721,1715803832624,-369.0,0.0001039,2]
[327086722,1715803832634,-276.49242401,0.000104,3]
[327086723,1715803832645,-281.19172138,0.000104,3]
[327086724,1715803832658,-696.6493442,0.000104,3]
[327086725,1715803832691,-472.14322502,0.000104,3]
[327086726,1715803832702,-8473.52328539,0.000104,3]
[327086727,1715803832711,-158.11,0.00010411,2]
[327086728,1715803832720,-177.65,0.00010446,2]
[327086729,1715803832730,-13600.0,0.000105,3]
[327086730,1715803832739,-223.0,0.0001054,2]
[327086731,1715803832748,-369.0,0.0001054,2]
[327086732,1715803832757,-17000.0,0.000106,3]
[327086733,1715803832766,-223.0,0.0001069,2]
[327086734,1715803832775,-369.0,0.0001069,2]
[327086735,1715803832786,-3400.0,0.000107,3]
[327086736,1715803832795,-3400.0,0.000108,3]
[327086737,1715803832804,-1000.0,0.00010825,2]
[327086738,1715803832813,-1412.27528136,0.00010827,2]
[327086739,1715803832824,-223.0,0.0001085,2]
[327086740,1715803832833,-369.0,0.0001085,2]
[327086741,1715803832842,-3400.0,0.000109,3]
[327086742,1715803832851,-1000.0,0.00010902,2]
[327086743,1715803832861,-750.17982827,0.00011,2]
[327086744,1715803832870,-223.0,0.00011,2]
[327086745,1715803832880,-369.0,0.00011,2]
[327086746,1715803832889,-1541.93546392,0.00011,2]
[327086747,1715803832898,-1111.09966964,0.00011045,2]
[327086748,1715803832907,-184.88345602,0.0001105,2]
[327086749,1715803832917,-1563.85586632,0.00011081,2]
[327086750,1715803832926,-869.03,0.00011096,2]
[327086751,1715803832936,-415.01,0.00011096,2]
[327086752,1715803832945,-869.03,0.00011096,2]
[327086753,1715803832954,-385.49,0.00011096,2]
[327086754,1715803832964,-53668.642,0.00011098,2]
[327086755,1715803832972,-622.22,0.00011098,2]
[327086756,1715803832982,-223.0,0.0001115,2]
[327086757,1715803832991,-369.0,0.0001115,2]
[327086758,1715803833000,-267.5548853,0.00011188,2]
[327086759,1715803833010,-688065.8030067,0.00011198,2]
[327086760,1715803833020,-132310.5607,0.00011199,2]
[327086761,1715803833029,-4794.9166,0.00011199,2]
[327086762,1715803833039,-3963.6683,0.00011258,2]
[327086763,1715803833049,-633.0546,0.00011258,2]
[327086764,1715803833058,-8222.9088,0.00011258,2]
[327086765,1715803833067,-286.89242677,0.00011296,2]
[327086766,1715803833077,-213.66875261,0.00011297,2]
[327086767,1715803833086,-1062.81742586,0.00011298,2]
[327086768,1715803833095,-180.82567879,0.00011298,2]
[327086769,1715803833104,-180.82567878,0.00011299,2]
[327086770,1715803833113,-3336.3254,0.00011299,2]
[327086771,1715803833122,-180.82567878,0.00011299,2]
[327086772,1715803833131,-500.0,0.000113,2]
[327086773,1715803833141,-1523.8541,0.000113,2]
[327086774,1715803833150,-158.85387453,0.000113,2]
[327086775,1715803833159,-2867.7659,0.000113,2]
[327086776,1715803833168,-180.82567878,0.000113,2]
[327086777,1715803833177,-417.31767589,0.000113,2]
[327086778,1715803833187,-179.58164916,0.000113,2]
[327086779,1715803833196,-223.0,0.0001131,2]
[327086780,1715803833205,-369.0,0.0001131,2]
[327086781,1715803833214,-328.36,0.00011326,2]
[327086782,1715803833224,-800.0,0.0001137,2]
[327086783,1715803833235,-150.0,0.0001137,2]
[327086784,1715803833245,-150.0,0.0001137,2]
[327086785,1715803833254,-150.0,0.0001137,2]
[327086786,1715803833264,-150.0,0.0001137,2]
[327086787,1715803833273,-150.0,0.0001137,2]
[327086788,1715803833283,-150.0,0.0001137,2]
[327086789,1715803833292,-617.91342405,0.00011397,2]
[327086790,1715803833301,-305.72421467,0.00011397,2]
[327086791,1715803833310,-155.31745909,0.00011397,2]
[327086792,1715803833323,-191.07717456,0.00011397,2]
[327086793,1715803833333,-406.05433481,0.00011397,2]
[327086794,1715803833342,-200.21998404,0.00011397,2]
[327086795,1715803833351,-711.88036721,0.00011397,2]
[327086796,1715803833361,-201.15617455,0.00011397,2]
[327086797,1715803833371,-311.1631246,0.00011397,2]
[327086798,1715803833380,-200.34341848,0.00011397,2]
[327086799,1715803833390,-165.39781373,0.00011397,2]
[327086800,1715803833399,-202.23422368,0.00011397,2]
[327086801,1715803833408,-236.8114536,0.00011397,2]
[327086802,1715803833417,-165.20489312,0.00011397,2]
[327086803,1715803833426,-305.8287115,0.00011397,2]
[327086804,1715803833436,-155.0,0.00011397,2]
[327086805,1715803833445,-199.62095941,0.00011397,2]
[327086806,1715803833456,-422.45066744,0.00011397,2]
[327086807,1715803833465,-206.88313584,0.00011397,2]
[327086808,1715803833475,-162.70674486,0.00011397,2]
[327086809,1715803833484,-574.34871661,0.00011397,2]
[327086810,1715803833494,-204.31657364,0.00011397,2]
[327086811,1715803833503,-208.17791052,0.00011397,2]
[327086812,1715803833512,-177.54622384,0.00011397,2]
[327086813,1715803833522,-155.0,0.00011397,2]
[327086814,1715803833532,-155.28740002,0.00011397,2]
[327086815,1715803833543,-155.96026536,0.00011397,2]
[327086816,1715803833552,-223.49390701,0.00011397,2]
[327086817,1715803833561,-155.78373103,0.00011397,2]
[327086818,1715803833571,-155.1772459,0.00011397,2]
[327086819,1715803833580,-155.0,0.00011397,2]
[327086820,1715803833589,-623.08577805,0.00011397,2]
[327086821,1715803833598,-166.81757453,0.00011398,2]
[327086822,1715803833608,-199.35754854,0.00011398,2]
[327086823,1715803833617,-320.0247412,0.00011398,2]
[327086824,1715803833627,-2183.25094686,0.00011398,2]
[327086825,1715803833636,-268.1006071,0.00011398,2]
[327086826,1715803833645,-155.0,0.00011398,2]
[327086827,1715803833655,-157.60689553,0.00011398,2]
[327086828,1715803833664,-155.0,0.00011398,2]
[327086829,1715803833674,-155.0,0.00011398,2]
[327086830,1715803833684,-314.81387529,0.00011398,2]
[327086831,1715803833693,-539.57548686,0.00011398,7]
[327086832,1715803833702,-155.74584434,0.00011398,2]
[327086833,1715803833712,-155.38578118,0.00011398,2]
[327086834,1715803833721,-155.0,0.00011399,2]
[327086835,1715803833730,-321.27964177,0.00011399,2]
[327086836,1715803833739,-324.63300396,0.00011399,2]
[327086837,1715803833749,-344.18931517,0.00011399,2]
[327086838,1715803833758,-685.76902713,0.00011399,2]
[327086839,1715803833767,-1042.51628781,0.00011399,3]
[327086840,1715803833777,-1042.51628781,0.00011399,3]
[327086841,1715803833788,-1042.51628782,0.00011399,3]
[327086842,1715803833797,-211288.8380991,0.000114,2]
[327086843,1715803833811,-1479.4257306,0.000114,2]
[327086844,1715803833822,-252.35689823,0.000114,2]
[327086862,1715803837970,-848.31159818,0.000114,2]
[327086864,1715803837983,-633.84,0.000114,2]
[327086866,1715803838031,-206446.20621842,0.000114,2]
[327086867,1715803838044,-1088.81960473,0.000114,2]
[327086868,1715803838055,-40728.725492,0.000114,2]
[327086869,1715803838106,-2199.22889,0.000114,2]
[327086870,1715803838117,-5746.78626034,0.000114,2]
[327086871,1715803838168,-1050.0,0.000114,2]
[327086872,1715803838179,-795.2682055,0.000114,2]
[327086873,1715803838190,-1007.38297438,0.000114,2]
[327086874,1715803838201,-215585.16472521,0.000114,2]
[327086875,1715803838213,-284.51111494,0.000114,2]
[327086876,1715803838232,-70030.24232175,0.000114,2]
[327086877,1715803838244,-2230626.14496725,0.000114,2]
[327086878,1715803838256,-648.5229323,0.000114,2]
[327086879,1715803838293,-15433.41882944,0.000114,2]
[327086880,1715803838306,-10859.41738551,0.000114,2]
[327086881,1715803838359,-2390.55985511,0.000114,2]
[327086897,1715803840187,-1377.95798388,0.000114,2]
[327086898,1715803840198,-310.66719996,0.000114,2]
[327086899,1715803841245,-1075.78973677,0.000114,2]
[327086900,1715803841347,-3726.4056193,0.000114,2]
[327086928,1715803843170,-1335278.64132958,0.000114,2]
[327086935,1715803843285,-902981.44079808,0.000114,2]
[327086936,1715803843299,-563.8784653,0.000114,2]
[327086937,1715803843311,-1267.82998508,0.000114,2]
[327086938,1715803843403,-670.92305894,0.000114,2]
[327086939,1715803843759,-782.91,0.000114,2]
[327086940,1715803843770,-502.77442162,0.000114,2]
[327086941,1715803843808,-6240.7,0.000114,2]
[327086949,1715803846376,-234.14248517,0.00011398,2]
[327086950,1715803846385,-207.77979164,0.00011399,2]
[327086951,1715803846438,-115.83655102,0.00011399,2]
[327086952,1715803846447,-203.51652583,0.00011399,2]
[327086953,1715803846501,-157.34929293,0.00011399,2]
[327086954,1715803846510,-533.63704903,0.00011399,2]
[327086955,1715803846519,-1485.49336443,0.00011399,2]
[327086956,1715803846528,-30935.29778587,0.000114,2]
[327086957,1715803846581,-217.85571258,0.00011399,2]
[327086958,1715803846590,-158.44093397,0.000114,2]
[327086959,1715803846601,-16052.68610441,0.000114,2]
[327086966,1715804117184,-155.0,0.00010643,2]
[327086967,1715804117206,-155.0,0.00010644,2]
[327086968,1715804117228,-234.14248517,0.00010644,2]
[327086969,1715804117252,-207.85751483,0.00010644,2]
[327086986,1715804506807,436.740793,8.178e-05,2]
[327086987,1715804512989,266.19309669,8.177e-05,2]
[327086991,1715804764552,159.88,8.219e-05,2]
[327086992,1715804780828,1971.83382113,6.133e-05,2]
[327086993,1715804785568,155.0,8.503e-05,2]
[327086994,1715804791953,4594.74275023,8.503e-05,2]
[327086995,1715804798650,239.4101474,8.503e-05,2]
[327086997,1715804824513,3283.15688615,8.503e-05,2]
[327086998,1715804831455,266.19309669,8.503e-05,2]
[327086999,1715804859233,939.02688406,8.503e-05,2]
[327087019,1715805032245,-234.14248517,8.515e-05,2]
[327087020,1715805032255,-535.02614423,8.516e-05,2]
[327087021,1715805032264,-159.74432395,8.516e-05,2]
[327087022,1715805032352,-429.76653749,8.516e-05,2]
[327087023,1715805032363,-1458.1938796,8.518e-05,2]
[327087024,1715805032372,-197.02,9.298e-05,2]
[327087025,1715805032382,-200.0,9.333e-05,2]
[327087026,1715805032392,-286.24,9.333e-05,2]
[327087027,1715805032401,-150.0,9.333e-05,2]
[327087028,1715805032410,-150.0,9.333e-05,2]
[327087029,1715805032419,-322.86,9.334e-05,2]
[327087030,1715805032428,-2993.3278932,9.334e-05,2]
[327087031,1715805032440,-926.4321068,9.334e-05,2]
[327087032,1715805032449,-200.0,9.555e-05,2]